bitfinex/quotes_SOLUSD_20241013
["timestamp","ask_amount","ask_price","bid_price","bid_amount"]
[1728805331232,30.604384,146.47,146.44,3.4714875]
[1728805332834,23.776884,146.47,146.44,3.47159918]
[1728805333211,23.776884,146.47,146.43,21.57815118]
[1728805333658,23.776884,146.47,146.43,20.2124032]
[1728805334811,23.776884,146.47,146.43,0.2124032]
[1728805344841,23.776884,146.47,146.43,4.02187218]
[1728805345027,16.4154,146.48,146.44,1.36569473]
[1728805345221,6.4869,146.49,146.43,15.42385223]
[1728805345629,23.776884,146.48,146.43,15.42385223]
[1728805347826,13.3133,146.49,146.44,20.0]
[1728805348130,23.776884,146.48,146.44,20.0]
[1728805351452,23.776884,146.48,146.43,4.02187218]
[1728805351755,23.776884,146.48,146.43,24.02187218]
[1728805352844,23.776884,146.48,146.43,20.2124032]
[1728805353827,30.603784,146.48,146.43,20.2124032]
[1728805354230,23.776884,146.48,146.43,20.2124032]
[1728805355629,23.776884,146.48,146.43,0.2124032]
[1728805355830,23.776884,146.48,146.43,20.2124032]
[1728805367264,16.0035,146.51,146.45,20.0]
[1728805367265,23.776884,146.5,146.45,20.0]
[1728805367838,23.776884,146.5,146.45,11.40198005]
[1728805368164,23.776884,146.5,146.46,20.0]
[1728805372759,23.776884,146.5,146.46,11.40198005]
[1728805378695,23.776884,146.5,146.45,11.40198005]
[1728805378856,23.776884,146.5,146.46,20.0]
[1728805379755,23.776884,146.51,146.46,32.76738717]
[1728805380144,23.776884,146.51,146.46,31.40198005]
[1728805381266,23.776884,146.51,146.46,20.0]
[1728805381464,23.776884,146.51,146.45,11.40198005]
[1728805381866,23.776884,146.51,146.46,20.0]
[1728805384667,23.776884,146.51,146.46,11.40198005]
[1728805384975,23.776884,146.51,146.47,20.0]
[1728805390173,23.776884,146.51,146.47,21.36535939]
[1728805391456,23.776884,146.51,146.48,20.0]
[1728805392063,6.3904,146.52,146.48,20.0]
[1728805392789,23.776884,146.52,146.48,20.0]
[1728805401803,23.776884,146.53,146.48,20.0]
[1728805406000,16.6014,146.54,146.5,20.0]
[1728805407601,23.776884,146.55,146.5,20.0]
[1728805409401,23.776884,146.55,146.48,31.40198005]
[1728805409578,23.776884,146.55,146.49,3.46745336]
[1728805409780,23.776884,146.55,146.5,3.46745336]
[1728805410003,23.776884,146.55,146.49,3.46745336]
[1728805410198,23.776884,146.55,146.5,3.46745336]
[1728805410406,23.776884,146.55,146.49,3.46745336]
[1728805410606,23.776884,146.55,146.5,3.46745336]
[1728805410779,23.776884,146.55,146.49,3.46745336]
[1728805410975,23.776884,146.55,146.5,3.46745336]
[1728805411203,23.776884,146.55,146.49,3.46745336]
[1728805411393,23.776884,146.55,146.5,3.46745336]
[1728805411593,23.776884,146.55,146.49,3.46745336]
[1728805411794,23.776884,146.55,146.5,3.46745336]
[1728805411990,23.776884,146.55,146.49,3.46745336]
[1728805412197,23.776884,146.55,146.5,3.46745336]
[1728805412407,23.776884,146.55,146.49,3.46638596]
[1728805412613,23.776884,146.55,146.5,3.46638596]
[1728805412800,23.776884,146.55,146.48,31.40198005]
[1728805412801,23.776884,146.55,146.49,3.46638596]
[1728805413007,23.776884,146.55,146.5,3.46638596]
[1728805413208,30.600484,146.55,146.49,3.46638596]
[1728805413525,30.600484,146.55,146.5,3.46638596]
[1728805413705,30.600484,146.55,146.49,3.46638596]
[1728805414013,30.600484,146.55,146.5,3.46638596]
[1728805414208,30.600484,146.55,146.49,3.46638596]
[1728805414514,30.600484,146.55,146.5,3.46638596]
[1728805414714,30.600484,146.55,146.49,3.46638596]
[1728805414915,30.600484,146.55,146.5,3.46638596]
[1728805415116,30.600484,146.55,146.49,3.46638596]
[1728805415313,30.600484,146.55,146.5,3.46638596]
[1728805415891,30.600484,146.55,146.5,23.46638596]
[1728805416092,30.600484,146.55,146.5,20.0]
[1728805419991,23.776884,146.53,146.5,20.0]
[1728805420598,23.776884,146.54,146.5,20.0]
[1728805433938,23.776884,146.55,146.5,20.0]
[1728805434113,23.776884,146.55,146.51,23.46873437]
[1728805434311,23.776884,146.55,146.51,20.0]
[1728805434804,23.776884,146.55,146.5,20.0]
[1728805439533,23.776884,146.55,146.51,1.36492366]
[1728805439737,23.776884,146.55,146.5,20.0]
[1728805445039,23.776884,146.55,146.5,19.97105037]
[1728805447043,23.776884,146.55,146.48,20.0]
[1728805447340,23.776884,146.55,146.48,31.40198005]
[1728805451436,23.776884,146.55,146.51,20.0]
[1728805461444,6.3915,146.56,146.51,20.0]
[1728805461645,23.776884,146.57,146.51,20.0]
[1728805461849,23.776884,146.57,146.51,11.40198005]
[1728805462357,23.776884,146.57,146.52,20.0]
[1728805463762,23.776884,146.57,146.52,32.76683573]
[1728805464147,23.776884,146.57,146.52,20.0]
[1728805482978,30.599484,146.57,146.52,20.0]
[1728805492798,23.776884,146.57,146.52,20.0]
[1728805495090,23.776884,146.57,146.53,3.47294919]
[1728805495289,23.776884,146.57,146.54,3.47294919]
[1728805495498,23.776884,146.57,146.55,3.47294919]
[1728805495702,23.776884,146.57,146.52,20.0]
[1728805496002,23.776884,146.57,146.53,3.47277429]
[1728805496181,23.776884,146.57,146.54,3.47277429]
[1728805496381,23.776884,146.57,146.55,3.47277429]
[1728805496605,23.776884,146.57,146.52,20.0]
[1728805496779,23.776884,146.57,146.53,3.47264747]
[1728805496988,23.776884,146.57,146.54,3.47264747]
[1728805497188,23.776884,146.57,146.55,3.47264747]
[1728805497392,23.776884,146.57,146.53,20.0]
[1728805497578,23.776884,146.57,146.54,3.47254708]
[1728805497778,23.776884,146.57,146.55,3.47254708]
[1728805498003,23.776884,146.57,146.53,20.0]
[1728805498200,23.776884,146.57,146.54,3.47249501]
[1728805498405,23.776884,146.57,146.55,3.47249501]
[1728805498583,23.776884,146.57,146.53,20.0]
[1728805498784,23.776884,146.57,146.54,3.47215837]
[1728805498986,23.776884,146.57,146.55,3.47215837]
[1728805499221,23.776884,146.57,146.53,20.0]
[1728805499502,23.776884,146.57,146.54,3.47213771]
[1728805499685,23.776884,146.57,146.55,3.47213771]
[1728805499886,23.776884,146.57,146.53,20.0]
[1728805500086,23.776884,146.57,146.54,3.47214104]
[1728805500304,23.776884,146.57,146.55,3.47214104]
[1728805500606,23.776884,146.57,146.53,20.0]
[1728805500802,23.776884,146.57,146.54,3.47214531]
[1728805500979,23.776884,146.57,146.55,3.47214531]
[1728805501184,23.776884,146.57,146.53,20.0]
[1728805501383,23.776884,146.57,146.54,3.47203049]
[1728805501685,23.776884,146.57,146.55,3.47203049]
[1728805501887,23.776884,146.57,146.51,20.0]
[1728805502092,23.776884,146.57,146.52,3.47202889]
[1728805502295,23.776884,146.57,146.53,3.47202889]
[1728805502495,23.776884,146.57,146.51,20.0]
[1728805502496,23.776884,146.57,146.54,3.47202889]
[1728805502698,23.776884,146.57,146.55,3.47202889]
[1728805502904,23.776884,146.57,146.51,20.0]
[1728805503200,23.776884,146.57,146.52,3.47191736]
[1728805503385,23.776884,146.57,146.53,3.47191736]
[1728805503582,23.776884,146.57,146.54,3.47191736]
[1728805503809,23.776884,146.57,146.54,3.47180658]
[1728805503998,23.776884,146.57,146.55,3.47180658]
[1728805504199,23.776884,146.57,146.51,20.0]
[1728805504401,23.776884,146.57,146.52,3.47175453]
[1728805504600,23.776884,146.57,146.53,3.47175453]
[1728805504803,23.776884,146.57,146.54,3.47175453]
[1728805504999,23.776884,146.57,146.55,3.47175453]
[1728805505307,23.776884,146.57,146.53,20.0]
[1728805505507,23.776884,146.57,146.54,3.47160859]
[1728805505709,23.776884,146.57,146.55,3.47160859]
[1728805505889,23.776884,146.57,146.53,20.0]
[1728805506089,23.776884,146.57,146.54,3.47160699]
[1728805506288,23.776884,146.57,146.55,3.47160699]
[1728805506490,23.776884,146.57,146.53,20.0]
[1728805506711,23.776884,146.57,146.54,3.47150355]
[1728805506907,23.776884,146.57,146.55,3.47150355]
[1728805507085,23.776884,146.57,146.53,20.0]
[1728805507284,23.776884,146.57,146.54,3.47156505]
[1728805507503,23.776884,146.57,146.55,3.47156505]
[1728805507710,23.776884,146.57,146.53,20.0]
[1728805507891,23.776884,146.57,146.54,3.47159007]
[1728805508092,23.776884,146.57,146.55,3.47159007]
[1728805508291,23.776884,146.57,146.53,20.0]
[1728805508508,23.776884,146.57,146.54,3.47157293]
[1728805508711,23.776884,146.57,146.55,3.47157293]
[1728805508886,23.776884,146.57,146.53,20.0]
[1728805509209,23.776884,146.57,146.54,3.47157454]
[1728805509404,23.776884,146.57,146.55,3.47157454]
[1728805509605,23.776884,146.57,146.53,20.0]
[1728805509785,23.776884,146.57,146.54,3.47157101]
[1728805509985,23.776884,146.57,146.55,3.47157101]
[1728805510203,23.776884,146.57,146.53,20.0]
[1728805510503,23.776884,146.57,146.54,3.47153354]
[1728805510695,23.776884,146.57,146.55,3.47153354]
[1728805510999,22.4125,146.58,146.53,20.0]
[1728805511000,15.5903,146.58,146.53,20.0]
[1728805511400,15.5903,146.58,146.54,23.47145171]
[1728805511888,15.5903,146.58,146.55,3.47145171]
[1728805512111,15.5903,146.58,146.54,20.0]
[1728805512306,15.5903,146.58,146.55,3.47139752]
[1728805512497,15.5903,146.58,146.54,20.0]
[1728805512699,15.5903,146.58,146.55,3.47150217]
[1728805512890,15.5903,146.58,146.54,20.0]
[1728805513094,15.5903,146.58,146.55,3.47150217]
[1728805513296,15.5903,146.58,146.54,20.0]
[1728805513594,15.5903,146.58,146.55,3.47155218]
[1728805513795,15.5903,146.58,146.54,20.0]
[1728805513996,15.5903,146.58,146.55,3.47155138]
[1728805514199,15.5903,146.58,146.54,20.0]
[1728805514495,15.5903,146.58,146.55,3.47161556]
[1728805514697,15.5903,146.58,146.54,20.0]
[1728805515096,15.5903,146.58,146.55,3.47161556]
[1728805515316,15.5903,146.58,146.54,20.0]
[1728805515509,15.5903,146.58,146.55,3.47169447]
[1728805515687,23.776884,146.57,146.54,20.0]
[1728805515893,23.776884,146.57,146.55,3.47167008]
[1728805516116,30.601084,146.54,146.49,3.47167008]
[1728805516325,30.601084,146.54,146.5,3.47167008]
[1728805516509,30.601084,146.54,146.51,3.47167008]
[1728805516693,30.601084,146.54,146.46,11.40198005]
[1728805516904,30.601084,146.54,146.47,14.8747501]
[1728805517096,30.601084,146.54,146.48,3.47277005]
[1728805517291,30.601084,146.54,146.49,3.47277005]
[1728805517496,30.601084,146.54,146.5,3.47277005]
[1728805517722,30.601084,146.54,146.47,11.40198005]
[1728805518027,30.601084,146.54,146.48,23.47158694]
[1728805518329,30.601084,146.54,146.49,23.47158694]
[1728805518526,30.601084,146.54,146.5,3.47158694]
[1728805518826,30.601084,146.54,146.5,6.94216387]
[1728805519116,30.601084,146.54,146.48,20.0]
[1728805519529,30.601084,146.54,146.49,3.46978253]
[1728805519824,30.601084,146.54,146.5,3.46978253]
[1728805520016,30.601084,146.54,146.49,3.46978253]
[1728805520206,30.601084,146.54,146.5,3.46978253]
[1728805520412,30.601084,146.54,146.49,3.46978253]
[1728805520623,30.601084,146.54,146.5,3.46978253]
[1728805520823,30.601084,146.54,146.49,3.46978253]
[1728805520999,30.601084,146.54,146.5,3.46978253]
[1728805521313,30.601084,146.54,146.49,3.46978253]
[1728805521516,30.601084,146.54,146.48,20.0]
[1728805521709,30.601084,146.54,146.49,3.46838015]
[1728805521912,30.601084,146.54,146.48,20.0]
[1728805522104,30.601084,146.54,146.49,3.46837935]
[1728805522802,30.601084,146.54,146.49,23.46837935]
[1728805523003,30.601084,146.54,146.49,20.0]
[1728805528024,30.601084,146.54,146.47,11.40198005]
[1728805528227,30.601084,146.54,146.48,3.46528479]
[1728805528529,30.601084,146.54,146.48,23.46528479]
[1728805528733,30.601084,146.54,146.49,23.46528479]
[1728805528915,30.601084,146.54,146.49,20.0]
[1728805529317,30.601084,146.54,146.48,20.0]
[1728805530114,30.601084,146.54,146.43,33.14704481]
[1728805530115,23.776884,146.52,146.44,20.0]
[1728805530635,16.4644,146.54,146.44,31.40198005]
[1728805530636,23.776884,146.53,146.44,31.40198005]
[1728805530813,23.776884,146.53,146.45,3.46451225]
[1728805531014,23.776884,146.53,146.46,3.46451225]
[1728805531230,23.776884,146.53,146.45,3.46451225]
[1728805531536,6.8257,146.51,146.45,3.46451225]
[1728805532028,23.776884,146.5,146.45,23.46451225]
[1728805532214,23.776884,146.49,146.46,3.46451225]
[1728805532419,23.776884,146.49,146.45,3.46451225]
[1728805533228,16.4644,146.54,146.46,11.40198005]
[1728805533426,6.8255,146.51,146.45,12.76746729]
[1728805533636,23.776884,146.5,146.46,20.0]
[1728805534335,23.776884,146.5,146.46,11.40198005]
[1728805534541,23.776884,146.51,146.47,20.0]
[1728805542335,23.776884,146.52,146.47,20.0]
[1728805544532,23.776884,146.52,146.47,11.40198005]
[1728805549831,23.776884,146.52,146.48,21.3652128]
[1728805550353,23.2885,146.54,146.48,32.76719076]
[1728805550524,23.776884,146.53,146.48,32.76719076]
[1728805550727,23.776884,146.53,146.48,31.40198005]
[1728805551733,23.776884,146.53,146.5,20.0]
[1728805552744,23.776884,146.53,146.48,20.0]
[1728805557236,30.601684,146.53,146.45,31.40198005]
[1728805557433,30.601684,146.53,146.46,3.46496649]
[1728805557624,30.601684,146.53,146.47,3.46496649]
[1728805557826,30.601684,146.53,146.48,3.46496649]
[1728805558146,30.601684,146.53,146.46,3.46496649]
[1728805558331,30.601684,146.53,146.47,3.46496649]
[1728805558531,30.601684,146.53,146.48,3.46496649]
[1728805558834,30.601684,146.53,146.46,3.46496649]
[1728805559042,30.601684,146.53,146.47,3.46496649]
[1728805559234,30.601684,146.53,146.48,3.46496649]
[1728805559441,30.601684,146.53,146.49,3.46496649]
[1728805559647,30.601684,146.53,146.46,3.46496649]
[1728805559949,23.776884,146.51,146.47,3.46496649]
[1728805560157,23.776884,146.51,146.48,3.46496649]
[1728805560354,23.776884,146.51,146.49,3.46496649]
[1728805560555,23.776884,146.51,146.46,3.46496649]
[1728805560735,23.776884,146.51,146.47,3.46496649]
[1728805560939,23.776884,146.51,146.48,3.46496649]
[1728805561259,30.388284,146.51,146.49,3.46496649]
[1728805561434,23.776884,146.49,146.43,0.2124032]
[1728805561642,23.776884,146.49,146.44,3.4705704]
[1728805561823,23.776884,146.49,146.45,3.4705704]
[1728805562024,23.776884,146.49,146.46,3.4705704]
[1728805562345,23.776884,146.49,146.44,11.40198005]
[1728805562531,23.776884,146.49,146.45,3.47169468]
[1728805562737,23.776884,146.49,146.46,3.47169468]
[1728805562933,23.776884,146.49,146.44,20.0]
[1728805563151,23.776884,146.49,146.45,3.47170103]
[1728805563459,23.776884,146.49,146.46,3.47170103]
[1728805563957,23.776884,146.49,146.44,20.0]
[1728805564160,23.776884,146.49,146.45,3.47118917]
[1728805564362,23.776884,146.49,146.46,3.47118917]
[1728805564659,23.776884,146.49,146.44,20.0]
[1728805564862,23.776884,146.49,146.45,3.47076796]
[1728805565163,23.776884,146.49,146.46,3.47076796]
[1728805565462,23.776884,146.49,146.45,3.47042335]
[1728805565661,23.776884,146.49,146.46,3.47042335]
[1728805565838,23.776884,146.5,146.45,34.8724034]
[1728805566157,23.776884,146.51,146.46,16.23783318]
[1728805566377,30.602384,146.51,146.47,23.47042335]
[1728805566556,23.776884,146.51,146.47,20.0]
[1728805573371,23.776884,146.51,146.48,3.47078897]
[1728805574459,23.776884,146.51,146.47,20.0]
[1728805576271,23.776884,146.51,146.46,11.40198005]
[1728805576457,23.776884,146.51,146.47,23.47152477]
[1728805576658,23.776884,146.51,146.47,20.0]
[1728805578180,23.776884,146.49,146.44,31.40198005]
[1728805578378,23.776884,146.49,146.45,3.47147013]
[1728805578583,23.776884,146.49,146.46,3.47147013]
[1728805578758,23.776884,146.49,146.47,3.47147013]
[1728805578956,23.776884,146.49,146.44,31.40198005]
[1728805579153,23.776884,146.49,146.45,3.4714668]
[1728805579379,23.776884,146.49,146.46,3.4714668]
[1728805579682,23.776884,146.49,146.47,3.4714668]
[1728805579979,23.776884,146.49,146.46,20.0]
[1728805580170,23.776884,146.49,146.47,3.47139874]
[1728805580365,23.776884,146.49,146.46,20.0]
[1728805580573,23.776884,146.49,146.47,3.47134421]
[1728805580767,23.1199,146.54,146.46,20.0]
[1728805580973,6.8255,146.51,146.47,3.47137656]
[1728805581176,6.8255,146.51,146.46,20.0]
[1728805581368,23.776884,146.5,146.47,3.47133495]
[1728805581573,23.776884,146.5,146.46,20.0]
[1728805581885,23.776884,146.5,146.47,3.47133577]
[1728805582086,23.776884,146.5,146.46,20.0]
[1728805582261,6.8255,146.51,146.47,3.47122598]
[1728805582467,6.8255,146.51,146.46,12.76742608]
[1728805582662,6.8251,146.52,146.47,23.47127637]
[1728805582865,6.8251,146.52,146.47,20.0]
[1728805582866,23.776884,146.51,146.47,20.0]
[1728805589091,23.776884,146.51,146.46,11.40198005]
[1728805589092,23.776884,146.51,146.45,11.40198005]
[1728805589276,30.602484,146.51,146.46,23.47101404]
[1728805589478,30.602484,146.51,146.47,3.47101404]
[1728805589785,30.602484,146.51,146.46,20.0]
[1728805589994,6.8259,146.5,146.47,3.47106966]
[1728805590177,6.8259,146.5,146.46,20.0]
[1728805590370,6.8259,146.5,146.47,3.47098252]
[1728805590576,23.776884,146.49,146.44,31.40198005]
[1728805590789,23.776884,146.49,146.45,3.47104403]
[1728805590992,6.8259,146.5,146.46,3.47104403]
[1728805591299,6.8259,146.5,146.47,3.47104403]
[1728805591474,6.8259,146.5,146.44,31.40198005]
[1728805591677,6.8259,146.5,146.45,3.471016]
[1728805591903,6.8259,146.5,146.46,3.471016]
[1728805592193,6.8259,146.5,146.47,3.471016]
[1728805592392,6.8259,146.5,146.44,31.40198005]
[1728805599787,6.8259,146.5,146.46,11.40198005]
[1728805602798,6.8259,146.5,146.44,31.40198005]
[1728805604993,23.776884,146.49,146.43,20.2124032]
[1728805605188,30.603384,146.49,146.43,20.2124032]
[1728805606307,30.603384,146.49,146.43,0.2124032]
[1728805606785,30.603384,146.49,146.43,20.2124032]
[1728805609805,6.8269,146.48,146.43,20.2124032]
[1728805610602,6.8276,146.47,146.43,20.2124032]
[1728805610805,6.8276,146.47,146.43,0.2124032]
[1728805616393,6.8276,146.47,146.43,20.2124032]
[1728805616793,23.776884,146.47,146.43,20.2124032]
[1728805617485,30.604184,146.47,146.43,20.2124032]
[1728805619305,23.776884,146.47,146.43,0.2124032]
[1728805619508,6.8282,146.45,146.43,0.2124032]
[1728805619810,30.605584,146.44,146.43,0.2124032]
[1728805648439,46.011384,146.44,146.43,0.2124032]
[1728805662341,22.2345,146.44,146.43,0.2124032]
[1728805663565,46.011384,146.44,146.43,0.2124032]
[1728805670157,6.8315,146.38,146.35,3.46740957]
[1728805670356,6.8315,146.38,146.34,35.2805]
[1728805678185,6.8322,146.37,146.34,35.2805]
[1728805678479,6.8316,146.38,146.34,35.2805]
[1728805681983,30.608084,146.39,146.34,35.2805]
[1728805688086,30.608084,146.39,146.34,20.0]
[1728805688285,30.608084,146.39,146.33,0.2621984]
[1728805688479,30.608084,146.39,146.33,23.73150327]
[1728805688666,30.608084,146.39,146.33,20.2621984]
[1728805689378,30.608084,146.39,146.33,0.2621984]
[1728805689689,30.608084,146.39,146.33,23.7321062]
[1728805689887,30.608084,146.39,146.33,20.2621984]
[1728805690386,30.608084,146.39,146.33,0.2621984]
[1728805690688,30.608084,146.39,146.33,23.73284348]
[1728805690890,30.608084,146.39,146.33,20.2621984]
[1728805691377,30.608084,146.39,146.34,3.47153544]
[1728805693083,30.608084,146.39,146.33,20.2621984]
[1728805693282,30.608084,146.39,146.34,3.47349816]
[1728805693570,30.608084,146.39,146.33,20.2621984]
[1728805693778,30.608084,146.39,146.34,3.47349816]
[1728805694090,30.608084,146.39,146.33,20.2621984]
[1728805694299,30.608084,146.39,146.34,3.47438239]
[1728805694471,30.608084,146.39,146.33,20.2621984]
[1728805694671,30.608084,146.39,146.34,3.47435538]
[1728805694873,30.608084,146.39,146.34,20.0]
[1728805701276,30.608084,146.39,146.33,0.2621984]
[1728805701475,30.608084,146.39,146.34,3.47494739]
[1728805701700,30.608084,146.39,146.33,0.2621984]
[1728805701997,30.608084,146.39,146.34,3.47494664]
[1728805702202,30.608084,146.39,146.35,3.47494664]
[1728805702402,30.608084,146.39,146.34,3.47494664]
[1728805702805,30.608084,146.39,146.35,3.47494664]
[1728805703005,30.608084,146.39,146.34,3.47504611]
[1728805703202,30.608084,146.39,146.35,3.47504611]
[1728805703383,30.608084,146.39,146.34,3.47504611]
[1728805703703,6.8315,146.38,146.35,3.47517796]
[1728805703904,6.8315,146.38,146.34,3.47517796]
[1728805704084,6.8315,146.38,146.35,3.47534214]
[1728805704287,6.8315,146.38,146.34,3.47534214]
[1728805704486,6.8315,146.38,146.35,3.47534214]
[1728805704693,6.8315,146.38,146.34,3.47534214]
[1728805704899,6.8315,146.38,146.33,20.2621984]
[1728805705206,6.8315,146.38,146.34,3.4753954]
[1728805705407,6.8315,146.38,146.33,20.2621984]
[1728805705617,6.8315,146.38,146.34,3.47554051]
[1728805705813,6.8315,146.38,146.33,20.2621984]
[1728805706015,6.8315,146.38,146.34,3.47551428]
[1728805706192,6.8315,146.38,146.35,3.47551428]
[1728805706393,6.8315,146.38,146.33,20.2621984]
[1728805706797,6.8315,146.38,146.34,3.47570097]
[1728805706994,6.8315,146.38,146.35,3.47570097]
[1728805707301,6.8315,146.38,146.33,20.2621984]
[1728805707605,6.8315,146.38,146.34,3.47592025]
[1728805707804,6.8315,146.38,146.35,3.47592025]
[1728805708004,6.8315,146.38,146.33,20.2621984]
[1728805708204,6.8315,146.38,146.34,3.47619029]
[1728805708404,6.8315,146.38,146.35,3.47619029]
[1728805708612,6.8315,146.38,146.33,20.2621984]
[1728805708805,6.8315,146.38,146.34,3.47618869]
[1728805709026,6.8315,146.38,146.35,3.47618869]
[1728805709214,6.8315,146.38,146.33,20.2621984]
[1728805709406,6.8315,146.38,146.34,3.47651934]
[1728805709602,6.8315,146.38,146.35,3.47651934]
[1728805709803,23.776884,146.39,146.33,20.2621984]
[1728805709988,6.8321,146.37,146.34,3.4764931]
[1728805710316,6.8321,146.37,146.35,3.4764931]
[1728805710702,6.8321,146.37,146.33,31.66417845]
[1728805716412,6.8321,146.37,146.33,0.2621984]
[1728805729812,6.8315,146.38,146.33,0.2621984]
[1728805744338,6.8322,146.37,146.33,0.2621984]
[1728805745043,6.81027903,146.37,146.33,0.2621984]
[1728805748646,23.776884,146.37,146.33,0.2621984]
[1728805749349,6.8331,146.35,146.33,0.2621984]
[1728805751544,23.776884,146.37,146.33,0.2621984]
[1728805751742,23.776884,146.35,146.33,0.2621984]
[1728805767871,30.609784,146.35,146.33,0.2621984]
[1728805780774,23.776884,146.35,146.33,0.2621984]
[1728805784182,30.609884,146.35,146.33,0.2621984]
[1728805784388,23.776884,146.35,146.33,0.2621984]
[1728805786902,23.776884,146.35,146.34,3.47870638]
[1728805787572,23.776884,146.35,146.34,3.47889651]
[1728805787997,23.776884,146.35,146.33,0.2621984]
[1728805788303,23.776884,146.35,146.34,3.47917175]
[1728805789201,23.776884,146.35,146.33,0.2621984]
[1728805789400,23.776884,146.35,146.34,3.47944535]
[1728805791608,30.609784,146.35,146.34,3.47944535]
[1728805799202,30.609784,146.35,146.34,3.48201996]
[1728805800614,30.609784,146.35,146.34,3.48203263]
[1728805802915,30.609784,146.35,146.33,0.2621984]
[1728805803122,30.610284,146.34,146.33,0.2621984]
[1728805807412,37.084984,146.34,146.33,0.2621984]
[1728805809399,6.833,146.35,146.33,0.2621984]
[1728805809807,6.8334,146.34,146.33,0.2621984]
[1728805810702,16.3494,146.37,146.33,0.2621984]
[1728805811118,6.8328,146.36,146.33,0.2621984]
[1728805811325,6.833,146.35,146.33,0.2621984]
[1728805811518,6.8334,146.34,146.33,0.2621984]
[1728805812200,30.610284,146.34,146.33,0.2621984]
[1728805819314,23.776884,146.34,146.33,0.2621984]
[1728805820124,30.610284,146.34,146.33,0.2621984]
[1728805832354,6.833,146.35,146.33,0.2621984]
[1728805832652,23.47296652,146.37,146.33,0.2621984]
[1728805832653,6.8334,146.34,146.33,0.2621984]
[1728805834161,30.610284,146.34,146.33,0.2621984]
[1728805835455,6.8326,146.36,146.33,0.2621984]
[1728805835662,7.12356652,146.37,146.33,20.2621984]
[1728805835972,6.8319,146.38,146.33,20.2621984]
[1728805836745,6.8319,146.38,146.33,0.2621984]
[1728805837053,23.776884,146.36,146.33,0.2621984]
[1728805840368,23.776884,146.36,146.33,20.2621984]
[1728805841041,23.776884,146.37,146.33,20.2621984]
[1728805841949,23.776884,146.37,146.33,0.2621984]
[1728805842352,23.776884,146.37,146.33,20.2621984]
[1728805842568,23.776884,146.37,146.33,0.2621984]
[1728805842866,23.776884,146.37,146.33,20.2621984]
[1728805843360,23.776884,146.37,146.33,0.2621984]
[1728805849166,30.609184,146.37,146.33,0.2621984]
[1728805852765,30.609184,146.37,146.33,20.2621984]
[1728805859178,23.776884,146.37,146.33,0.2621984]
[1728805860459,30.610284,146.34,146.33,0.2621984]
[1728805886574,23.776884,146.34,146.33,0.2621984]
[1728805886771,30.610284,146.34,146.33,0.2621984]
[1728805922117,37.72562923,146.34,146.33,0.2621984]
[1728805923401,13.94874523,146.34,146.33,0.2621984]
[1728805923617,6.8334,146.34,146.33,0.2621984]
[1728805925014,30.610284,146.34,146.33,0.2621984]
[1728805932413,23.776884,146.34,146.33,0.2621984]
[1728805935936,6.8325,146.36,146.33,0.2621984]
[1728805936136,23.776884,146.35,146.33,0.2621984]
[1728805947363,23.776884,146.36,146.33,0.2621984]
[1728805947747,24.19829826,146.41,146.34,11.40198005]
[1728805948056,6.8307,146.4,146.35,11.40198005]
[1728805949569,23.776884,146.39,146.35,11.40198005]
[1728805950954,23.776884,146.39,146.36,11.40198005]
[1728805951158,23.776884,146.4,146.36,11.40198005]
[1728805953049,30.607484,146.4,146.36,11.40198005]
[1728805955645,30.607484,146.4,146.33,0.2621984]
[1728805955646,23.776884,146.43,146.37,11.40198005]
[1728805955862,23.776884,146.44,146.37,11.40198005]
[1728805956363,23.776884,146.41,146.37,11.40198005]
[1728805956563,23.776884,146.42,146.38,11.40198005]
[1728805957044,6.8293,146.43,146.38,11.40198005]
[1728805957444,6.8288,146.44,146.39,11.40198005]
[1728805959055,23.776884,146.43,146.39,11.40198005]
[1728805960357,23.776884,146.43,146.38,11.40198005]
[1728805960870,23.776884,146.43,146.39,20.0]
[1728805964071,23.776884,146.44,146.39,20.0]